fUST/lending_fUST_20250121
["ID","MTS","AMOUNT","RATE_DAILY","PERIOD"]
[349714374,1737390643413,-500.0,0.00022191,3]
[349714376,1737390643422,-485.86200779,0.00022191,3]
[349714378,1737390643432,-500.0,0.00022191,3]
[349714380,1737390643441,-500.0,0.00022191,3]
[349714382,1737390643450,-629.67,0.00022191,3]
[349714384,1737390643460,-500.0,0.00022191,3]
[349714386,1737390643470,-500.0,0.00022191,3]
[349714388,1737390643480,-434.17084414,0.00022191,3]
[349714390,1737390643490,-316.25854152,0.00022327,3]
[349714392,1737390643499,-500.0,0.00022327,3]
[349714394,1737390643509,-1283.37,0.00022328,3]
[349714396,1737390643518,-2811.88,0.00022328,3]
[349714398,1737390643528,-500.0,0.00022328,3]
[349714400,1737390643537,-547.59,0.00022328,3]
[349714402,1737390643546,-500.0,0.00022328,3]
[349714404,1737390643556,-500.0,0.00022328,3]
[349714406,1737390643570,-500.0,0.00022328,3]
[349714408,1737390643579,-625.71,0.00022328,3]
[349714410,1737390643589,-500.0,0.00022328,3]
[349714412,1737390643598,-230.24,0.00022328,3]
[349714414,1737390643609,-500.0,0.00022328,3]
[349714416,1737390643619,-796.28,0.00022328,3]
[349714418,1737390643628,-500.0,0.00022328,3]
[349714420,1737390643637,-500.0,0.00022328,3]
[349714422,1737390643647,-500.0,0.00022328,3]
[349714424,1737390643656,-500.0,0.00022328,3]
[349714426,1737390643666,-268.62,0.00022328,3]
[349714428,1737390643676,-500.0,0.00022328,3]
[349714430,1737390643686,-629.67,0.00022328,3]
[349714432,1737390643695,-561.38,0.00022328,3]
[349714434,1737390643705,-500.0,0.00022328,3]
[349714436,1737390643715,-3071.49764513,0.0002245,2]
[349714438,1737390643726,-1283.37,0.00022465,3]
[349714440,1737390643735,-2811.88,0.00022465,3]
[349714442,1737390643744,-547.59,0.00022465,3]
[349714444,1737390643754,-500.0,0.00022465,3]
[349714446,1737390643763,-500.0,0.00022465,3]
[349714448,1737390643773,-625.71,0.00022465,3]
[349714450,1737390643784,-500.0,0.00022465,3]
[349714452,1737390643796,-500.0,0.00022465,3]
[349714454,1737390643810,-796.28,0.00022465,3]
[349714456,1737390643819,-500.0,0.00022465,3]
[349714458,1737390643829,-500.0,0.00022465,3]
[349714460,1737390643839,-271.34,0.00022465,3]
[349714462,1737390643849,-500.0,0.00022465,3]
[349714464,1737390643859,-500.0,0.00022465,3]
[349714466,1737390643869,-629.67,0.00022465,3]
[349714468,1737390643878,-1283.37,0.00022602,3]
[349714470,1737390643887,-2811.88,0.00022602,3]
[349714472,1737390643897,-547.59,0.00022602,3]
[349714473,1737390643906,-500.0,0.00022602,3]
[349714475,1737390643916,-500.0,0.00022602,3]
[349714477,1737390643925,-625.71,0.00022602,3]
[349714479,1737390643935,-500.0,0.00022602,3]
[349714481,1737390643944,-500.0,0.00022602,3]
[349714483,1737390643953,-796.28,0.00022602,3]
[349714485,1737390643962,-500.0,0.00022602,3]
[349714487,1737390643971,-500.0,0.00022602,3]
[349714489,1737390643980,-500.0,0.00022602,3]
[349714491,1737390643990,-629.67,0.00022602,3]
[349714493,1737390643999,-500.0,0.00022624,2]
[349714494,1737390644009,-1008.26665475,0.000227,5]
[349714496,1737390644021,-722.44754087,0.00022734,2]
[349714498,1737390644030,-1283.37,0.00022739,3]
[349714500,1737390644039,-2811.88,0.00022739,3]
[349714502,1737390644048,-547.59,0.00022739,3]
[349714504,1737390644060,-500.0,0.00022739,3]
[349714506,1737390644070,-500.0,0.00022739,3]
[349714508,1737390644080,-625.71,0.00022739,3]
[349714510,1737390644090,-507.31812322,0.00022739,3]
[349714512,1737390644099,-585.16913747,0.00022739,3]
[349714514,1737390644109,-796.28,0.00022739,3]
[349714516,1737390644118,-204.00636478,0.00022739,3]
[349714518,1737390644128,-500.0,0.00022739,3]
[349714520,1737390644137,-457.79,0.00022739,3]
[349714522,1737390644146,-629.67,0.00022739,3]
[349714524,1737390644155,-1283.37,0.00022876,3]
[349714526,1737390644165,-2811.88,0.00022876,3]
[349714528,1737390644174,-547.59,0.00022876,3]
[349714530,1737390644183,-500.0,0.00022876,3]
[349714532,1737390644193,-513.42,0.00022876,3]
[349714534,1737390644203,-625.71,0.00022876,3]
[349714536,1737390644212,-796.28,0.00022876,3]
[349714538,1737390644221,-500.0,0.00022876,3]
[349714540,1737390644230,-629.67,0.00022876,3]
[349714542,1737390644240,-300.00000002,0.0002288,2]
[349714544,1737390644250,-1625.53648725,0.00022945,2]
[349714546,1737390644259,-200.29925064,0.00023,2]
[349714548,1737390644269,-1283.37,0.00023013,3]
[349714550,1737390644278,-2811.88,0.00023013,3]
[349714552,1737390644287,-547.59,0.00023013,3]
[349714554,1737390644297,-500.0,0.00023013,3]
[349714556,1737390644306,-625.71,0.00023013,3]
[349714558,1737390644318,-796.28,0.00023013,3]
[349714560,1737390644327,-648.97,0.00023013,3]
[349714562,1737390644336,-629.67,0.00023013,3]
[349714564,1737390644346,-490.958,0.0002306,2]
[349714577,1737390644455,-1283.37,0.0002315,3]
[349714579,1737390644465,-2811.88,0.0002315,3]
[349714581,1737390644475,-547.59,0.0002315,3]
[349714583,1737390644485,-500.0,0.0002315,3]
[349714585,1737390644495,-625.71,0.0002315,3]
[349714587,1737390644505,-796.28,0.0002315,3]
[349714589,1737390644515,-629.67,0.0002315,3]
[349714591,1737390644524,-195.7430769,0.00023227,2]
[349714593,1737390644533,-500.0,0.00023228,10]
[349714595,1737390644542,-500.0,0.00023228,10]
[349714597,1737390644552,-500.0,0.00023228,10]
[349714599,1737390644563,-500.0,0.00023228,10]
[349714601,1737390644573,-500.0,0.00023228,10]
[349714603,1737390644582,-500.0,0.00023228,10]
[349714605,1737390644591,-500.0,0.00023228,10]
[349714606,1737390644601,-500.0,0.00023228,10]
[349714608,1737390644611,-500.0,0.00023228,10]
[349714610,1737390644620,-500.0,0.00023228,10]
[349714612,1737390644629,-500.0,0.00023228,10]
[349714614,1737390644638,-500.0,0.00023228,10]
[349714616,1737390644647,-500.0,0.00023228,10]
[349714618,1737390644657,-500.0,0.00023228,10]
[349714620,1737390644666,-500.0,0.00023228,10]
[349714622,1737390644675,-500.0,0.00023228,10]
[349714624,1737390644684,-500.0,0.00023228,10]
[349714626,1737390644693,-500.0,0.00023228,10]
[349714628,1737390644702,-500.0,0.00023228,10]
[349714630,1737390644711,-500.0,0.00023228,10]
[349714632,1737390644721,-500.0,0.00023228,10]
[349714634,1737390644730,-700.0,0.00023228,10]
[349714636,1737390644740,-500.0,0.00023228,10]
[349714638,1737390644749,-500.0,0.00023228,10]
[349714640,1737390644758,-500.0,0.00023228,10]
[349714642,1737390644768,-500.0,0.00023228,10]
[349714644,1737390644777,-500.0,0.00023228,10]
[349714646,1737390644790,-934.7329575,0.00023228,10]
[349714648,1737390644800,-500.0,0.00023228,10]
[349714650,1737390644811,-500.0,0.00023228,10]
[349714652,1737390644820,-1600.0,0.00023228,10]
[349714654,1737390644830,-1600.0,0.00023228,10]
[349714656,1737390644839,-1600.0,0.00023228,10]
[349714658,1737390644848,-1600.0,0.00023228,10]
[349714659,1737390644857,-1600.0,0.00023228,10]
[349714661,1737390644867,-1600.0,0.00023228,10]
[349714663,1737390644876,-1600.0,0.00023228,10]
[349714665,1737390644885,-1500.0,0.00023228,10]
[349714667,1737390644895,-1600.0,0.00023228,10]
[349714669,1737390644904,-1600.0,0.00023228,10]
[349714671,1737390644914,-1500.0,0.00023228,10]
[349714673,1737390644923,-1600.0,0.00023228,10]
[349714675,1737390644932,-1500.0,0.00023228,10]
[349714677,1737390644941,-1600.0,0.00023228,10]
[349714679,1737390644951,-1500.0,0.00023228,10]
[349714681,1737390644960,-1600.0,0.00023228,10]
[349714683,1737390644969,-1500.0,0.00023228,10]
[349714685,1737390644978,-1600.0,0.00023228,10]
[349714687,1737390644988,-1500.0,0.00023228,10]
[349714689,1737390644997,-1500.0,0.00023228,10]
[349714691,1737390645007,-1991.9445689,0.00023228,10]
[349714693,1737390645020,-1500.0,0.00023228,10]
[349714695,1737390645030,-1500.0,0.00023228,10]
[349714697,1737390645039,-1500.0,0.00023228,10]
[349714698,1737390645048,-1500.0,0.00023228,10]
[349714700,1737390645059,-1500.0,0.00023228,10]
[349714703,1737390645070,-1500.0,0.00023228,10]
[349714705,1737390645079,-3000.0,0.00023228,10]
[349714707,1737390645089,-1283.37,0.00023287,3]
[349714708,1737390645099,-2811.88,0.00023287,3]
[349714710,1737390645109,-547.59,0.00023287,3]
[349714712,1737390645118,-500.0,0.00023287,3]
[349714714,1737390645128,-625.71,0.00023287,3]
[349714716,1737390645138,-796.28,0.00023287,3]
[349714718,1737390645148,-629.67,0.00023287,3]
[349714720,1737390645157,-1283.37,0.00023424,3]
[349714722,1737390645166,-2811.88,0.00023424,3]
[349714724,1737390645176,-547.59,0.00023424,3]
[349714726,1737390645186,-500.0,0.00023424,3]
[349714728,1737390645196,-625.71,0.00023424,3]
[349714730,1737390645206,-796.28,0.00023424,3]
[349714732,1737390645215,-629.67,0.00023424,3]
[349714734,1737390645224,-500.0,0.00023499,3]
[349714736,1737390645233,-372.62,0.000235,2]
[349714738,1737390645243,-1283.37,0.00023561,3]
[349714740,1737390645253,-2811.88,0.00023561,3]
[349714742,1737390645262,-547.59,0.00023561,3]
[349714744,1737390645272,-500.0,0.00023561,3]
[349714746,1737390645281,-625.71,0.00023561,3]
[349714748,1737390645291,-796.28,0.00023561,3]
[349714750,1737390645302,-629.67,0.00023561,3]
[349714752,1737390645315,-1283.37,0.00023698,3]
[349714754,1737390645326,-2811.88,0.00023698,3]
[349714756,1737390645339,-547.59,0.00023698,3]
[349714758,1737390645350,-500.0,0.00023698,3]
[349714760,1737390645360,-625.71,0.00023698,3]
[349714762,1737390645371,-796.28,0.00023698,3]
[349714764,1737390645382,-629.67,0.00023698,3]
[349714766,1737390645392,-151.0,0.000238,7]
[349714768,1737390645402,-1283.37,0.00023835,3]
[349714770,1737390645416,-2811.88,0.00023835,3]
[349714772,1737390645426,-547.59,0.00023835,3]
[349714774,1737390645437,-500.0,0.00023835,3]
[349714776,1737390645447,-625.71,0.00023835,3]
[349714779,1737390645458,-796.28,0.00023835,3]
[349714781,1737390645468,-629.67,0.00023835,3]
[349714783,1737390645478,-291.33748797,0.000239,2]
[349714785,1737390645488,-1283.37,0.00023972,3]
[349714787,1737390645497,-2811.88,0.00023972,3]
[349714788,1737390645507,-547.59,0.00023972,3]
[349714790,1737390645517,-500.0,0.00023972,3]
[349714792,1737390645527,-625.71,0.00023972,3]
[349714793,1737390645537,-796.28,0.00023972,3]
[349714794,1737390645546,-629.67,0.00023972,3]
[349714795,1737390645556,-2007.68874692,0.00024,30]
[349714796,1737390645567,-151.0,0.00024,5]
[349714797,1737390645577,-1641.373,0.00024089,2]
[349714799,1737390645587,-1283.37,0.00024109,3]
[349714802,1737390645596,-2811.88,0.00024109,3]
[349714804,1737390645606,-547.59,0.00024109,3]
[349714807,1737390645616,-269.3793368,0.00024109,3]
[349714810,1737390645626,-625.71,0.00024109,3]
[349714812,1737390645636,-796.28,0.00024109,3]
[349714815,1737390645646,-629.67,0.00024109,3]
[349714818,1737390645657,-166.146098,0.00024224,2]
[349714821,1737390645666,-1283.37,0.00024246,3]
[349714824,1737390645677,-2811.88,0.00024246,3]
[349714828,1737390645687,-547.59,0.00024246,3]
[349714831,1737390645697,-625.71,0.00024246,3]
[349714833,1737390645708,-796.28,0.00024246,3]
[349714835,1737390645717,-629.67,0.00024246,3]
[349714836,1737390645727,-185.0,0.00024248,2]
[349714838,1737390645736,-185.21,0.00024248,2]
[349714840,1737390645745,-151.0,0.00024265,7]
[349714842,1737390645755,-151.0,0.00024265,7]
[349714844,1737390645764,-151.0,0.00024265,7]
[349714846,1737390645774,-151.0,0.00024265,7]
[349714848,1737390645784,-259.822071,0.00024265,7]
[349714849,1737390645795,-151.0,0.00024266,7]
[349714850,1737390645806,-151.0,0.00024266,7]
[349714852,1737390645819,-301.999999,0.00024266,7]
[349714854,1737390645828,-10643.79312944,0.00024266,5]
[349714856,1737390645838,-4032.38606045,0.00024266,5]
[349714857,1737390645847,-386370.49716874,0.00024266,61]
[349714858,1737390645862,-7611.56458061,0.00024266,61]
[349714860,1737390645874,-25460.32668307,0.00024266,61]
[349714862,1737390645885,-506.28713783,0.00024266,61]
[349714864,1737390645897,-9116.7973344,0.00024266,61]
[349714867,1737390645914,-500.0,0.00021917,3]
[349714869,1737390645924,-171.77936835,0.00024266,61]
[349714871,1737390645935,-101327.58895874,0.00024266,61]
[349714875,1737390645951,-500.0,0.00021917,3]
[349714878,1737390645962,-1022.12636978,0.00024266,61]
[349714880,1737390645973,-722.48837836,0.00024266,61]
[349714882,1737390645983,-1280070.12278021,0.00024266,61]
[349714884,1737390645995,-1049.1,0.00024266,61]
[349714887,1737390646006,-13660.33197495,0.00024266,61]
[349714889,1737390646022,-304.933,0.00024266,61]
[349714947,1737390646698,-500.0,0.00021917,3]
[349714949,1737390646709,-27.1500001,0.00021917,3]
[349714951,1737390646721,-593.9999999,0.00021917,3]
[349714953,1737390646731,-5800.80056658,0.00024266,61]
[349714955,1737390646744,-16354.1831621,0.00024266,61]
[349714962,1737390646810,-20987.813,0.00024266,61]
[349715031,1737390647509,-10495.50513142,0.00024266,61]
[349715034,1737390647520,-3856.79465455,0.00024266,61]
[349715567,1737391348658,-500.0,0.00019238,2]
[349715568,1737391348681,-500.0,0.00019432,2]
[349715569,1737391348703,-500.0,0.00020432,2]
[349715570,1737391348726,-4600.5024331,0.00020938,2]
[349715571,1737391348748,-2345.84909449,0.00021015,2]
[349715572,1737391348770,-167.642,0.00021916,2]
[349715573,1737391348792,-300.0,0.00021916,2]
[349715574,1737391348833,-500.0,0.00021917,3]
[349715575,1737391348858,-500.0,0.00021917,3]
[349715576,1737391348879,-125.60647241,0.00021917,3]
[349715577,1737391540977,166.075173,0.00013973,2]
[349715590,1737391789622,373.69729308,0.00024264,120]
[349715667,1737391836829,-500.0,0.00018112,2]
[349715669,1737391836838,-500.0,0.00018295,2]
[349715671,1737391836848,-194.22499198,0.00019817,2]
[349715673,1737391836857,-500.0,0.00020432,2]
[349715675,1737391836866,-243.825984,0.00020719,2]
[349715677,1737391836875,-4086.5824461,0.00021128,2]
[349715679,1737391836885,-200.0,0.00021916,2]
[349715681,1737391836895,-350.0,0.00021916,2]
[349715683,1737391836904,-300.0,0.00021916,2]
[349715685,1737391836913,-503.678075,0.00021917,3]
[349715688,1737391836923,-369.16317892,0.00021917,3]
[349715690,1737391836932,-500.0,0.00021917,3]
[349715692,1737391836941,-500.0,0.00021917,3]
[349715694,1737391836950,-500.0,0.00021917,3]
[349715696,1737391836960,-500.0,0.00021917,3]
[349715698,1737391836969,-529.91499423,0.00021917,3]
[349715700,1737391836978,-500.0,0.00021917,3]
[349715702,1737391836988,-500.0,0.00021917,3]
[349715704,1737391836998,-500.0,0.00021917,3]
[349715706,1737391837007,-117.36501253,0.00021917,3]
[349715708,1737391837020,-382.63498747,0.00021917,3]
[349715710,1737391837029,-500.0,0.00021917,3]
[349715712,1737391837039,-614.32431529,0.00021917,3]
[349715714,1737391837054,-500.0,0.00021917,3]
[349715716,1737391837063,-166.28989724,0.00021917,3]
[349715883,1737391838586,-333.71010276,0.00021917,3]
[349715885,1737391838596,-500.0,0.00021917,3]
[349715887,1737391838606,-500.0,0.00021917,3]
[349715889,1737391838616,-500.0,0.00021917,3]
[349715891,1737391838626,-500.0,0.00021917,3]
[349715893,1737391838635,-500.0,0.00021917,3]
[349715895,1737391838646,-195.99017466,0.00021917,3]
[349715898,1737391838662,-304.00982534,0.00021917,3]
[349715900,1737391838672,-500.0,0.00021917,3]
[349715902,1737391838682,-500.0,0.00021917,3]
[349715904,1737391838691,-500.0,0.00021917,3]
[349715906,1737391838701,-500.0,0.00021917,3]
[349715908,1737391838711,-500.0,0.00021917,3]
[349715910,1737391838720,-500.0,0.00021917,3]
[349715912,1737391838729,-500.0,0.00021917,3]
[349715914,1737391838739,-500.0,0.00021917,3]
[349715916,1737391838747,-500.0,0.00021917,3]
[349715918,1737391838757,-500.0,0.00021917,3]
[349715920,1737391838766,-500.0,0.00021917,3]
[349715922,1737391838775,-500.0,0.00021917,3]
[349715924,1737391838784,-500.0,0.00021917,3]
[349715926,1737391838795,-500.0,0.00021917,3]
[349715928,1737391838805,-512.68794293,0.00021917,3]
[349715930,1737391838814,-500.0,0.00021917,3]
[349715932,1737391838823,-219.45488076,0.00021917,3]
[349715934,1737391838833,-500.0,0.00021917,3]
[349715936,1737391838843,-500.0,0.00021917,3]
[349715938,1737391838852,-500.0,0.00021917,3]
[349715940,1737391838862,-519.48586166,0.00021917,3]
[349715942,1737391838871,-500.0,0.00021917,3]
[349715944,1737391838881,-501.67226106,0.00021917,3]
[349715946,1737391838891,-500.0,0.00021917,3]
[349715948,1737391838901,-500.0,0.00021917,3]
[349715950,1737391838910,-482.18382814,0.00021917,3]
[349715952,1737391838923,-17.81617186,0.00021917,3]
[349715954,1737391838933,-500.0,0.00021917,3]
[349715956,1737391838943,-500.0,0.00021917,3]
[349715958,1737391838953,-500.0,0.00021917,3]
[349715960,1737391838962,-500.0,0.00021917,3]
[349715963,1737391838972,-500.0,0.00021917,3]
[349715965,1737391838982,-500.0,0.00021917,3]
[349715967,1737391838992,-151.484205,0.00021917,3]
[349715969,1737391839004,-435.72010214,0.00021917,3]
[349715971,1737391839014,-500.0,0.00021917,3]
[349715973,1737391839023,-500.0,0.00021917,3]
[349715975,1737391839032,-500.0,0.00021917,3]
[349715977,1737391839042,-500.0,0.00021917,3]
[349715979,1737391839052,-500.0,0.00021917,3]
[349715981,1737391839061,-388.96718984,0.00021917,3]
[349715983,1737391839070,-500.0,0.00021917,3]
[349715985,1737391839079,-500.0,0.00021917,3]
[349715987,1737391839088,-500.0,0.00021917,3]
[349715989,1737391839098,-500.0,0.00021917,3]
[349715991,1737391839107,-500.0,0.00021917,3]
[349715993,1737391839117,-500.0,0.00021917,3]
[349715995,1737391839127,-500.0,0.00021917,3]
[349715997,1737391839136,-500.0,0.00021917,3]
[349715999,1737391839145,-500.0,0.00021917,3]
[349716001,1737391839157,-502.34344684,0.00021917,3]
[349716003,1737391839167,-500.0,0.00021917,3]
[349716005,1737391839177,-500.0,0.00021917,3]
[349716007,1737391839186,-500.0,0.00021917,3]
[349716009,1737391839197,-257.65522758,0.00021917,3]
[349716011,1737391839206,-500.0,0.00021917,3]
[349716013,1737391839215,-500.0,0.00021917,3]
[349716015,1737391839225,-458.66460824,0.00021917,3]
[349716017,1737391839234,-500.0,0.00021917,3]
[349716019,1737391839244,-500.0,0.00021917,3]
[349716021,1737391839254,-500.0,0.00021917,3]
[349716023,1737391839265,-290.34858052,0.00021917,3]
[349716025,1737391839275,-500.0,0.00021917,3]
[349716027,1737391839284,-500.0,0.00021917,3]
[349716029,1737391839295,-500.0,0.00021917,3]
[349716031,1737391839305,-500.0,0.00021917,3]
[349716033,1737391839314,-528.79,0.00021917,3]
[349716035,1737391839323,-528.79,0.00021917,3]
[349716037,1737391839333,-528.79,0.00021917,3]
[349716039,1737391839342,-500.0,0.00021917,3]
[349716041,1737391839352,-528.79,0.00021917,3]
[349716043,1737391839361,-528.79,0.00021917,3]
[349716059,1737391839505,-528.79,0.00021917,3]
[349716061,1737391839515,-528.79,0.00021917,3]
[349716063,1737391839525,-528.79,0.00021917,3]
[349716065,1737391839534,-509.36848022,0.00021917,3]
[349716067,1737391839547,-500.0,0.00021917,3]
[349716069,1737391839557,-500.0,0.00021917,3]
[349716071,1737391839566,-500.0,0.00021917,3]
[349716074,1737391839576,-500.0,0.00021917,3]
[349716076,1737391839586,-500.0,0.00021917,3]
[349716078,1737391839596,-500.0,0.00021917,3]
[349716080,1737391839605,-500.0,0.00021917,3]
[349716082,1737391839615,-500.0,0.00021917,3]
[349716084,1737391839625,-500.0,0.00021917,3]
[349716086,1737391839635,-500.0,0.00021917,3]
[349716088,1737391839645,-512.11185753,0.00021917,3]
[349716090,1737391839654,-500.0,0.00021917,3]
[349716092,1737391839663,-500.0,0.00021917,3]
[349716094,1737391839672,-500.0,0.00021917,3]
[349716096,1737391839681,-500.0,0.00021917,3]
[349716098,1737391839691,-500.0,0.00021917,3]
[349716100,1737391839700,-500.0,0.00021917,3]
[349716102,1737391839711,-500.0,0.00021917,3]
[349716104,1737391839720,-500.0,0.00021917,3]
[349716106,1737391839730,-500.0,0.00021917,3]
[349716108,1737391839740,-500.0,0.00021917,3]
[349716111,1737391839749,-500.0,0.00021917,3]
[349716113,1737391839758,-500.0,0.00021917,3]
[349716115,1737391839768,-500.0,0.00021917,3]
[349716117,1737391839777,-500.0,0.00021917,3]
[349716119,1737391839786,-500.0,0.00021917,3]
[349716121,1737391839797,-500.0,0.00021917,3]
[349716123,1737391839806,-500.0,0.00021917,3]
[349716125,1737391839816,-500.0,0.00021917,3]
[349716127,1737391839825,-500.0,0.00021917,3]
[349716129,1737391839834,-500.0,0.00021917,3]
[349716131,1737391839843,-500.0,0.00021917,3]
[349716134,1737391839852,-500.0,0.00021917,3]
[349716136,1737391839864,-500.0,0.00021917,3]
[349716138,1737391839873,-500.0,0.00021917,3]
[349716140,1737391839883,-486.91169362,0.00021917,3]
[349716142,1737391839893,-500.0,0.00021917,3]
[349716144,1737391839902,-500.0,0.00021917,3]
[349716145,1737391839911,-500.0,0.00021917,3]
[349716147,1737391839920,-500.0,0.00021917,3]
[349716148,1737391839930,-500.0,0.00021917,3]
[349716149,1737391839939,-500.0,0.00021917,3]
[349716150,1737391839949,-500.0,0.00021917,3]
[349716151,1737391839967,-500.0,0.00021917,3]
[349716152,1737391839979,-500.0,0.00021917,3]
[349716153,1737391839989,-380.83430466,0.00021917,2]
[349716154,1737391839999,-500.0,0.00021917,3]
[349716155,1737391840009,-500.0,0.00021917,3]
[349716156,1737391840020,-500.0,0.00021917,3]
[349716157,1737391840031,-500.0,0.00021917,3]
[349716158,1737391840041,-500.0,0.00021917,3]
[349716159,1737391840052,-500.0,0.00021917,3]
[349716160,1737391840062,-336.28635912,0.00021917,3]
[349716161,1737391840072,-500.0,0.00021917,3]
[349716162,1737391840083,-500.0,0.00021917,3]
[349716163,1737391840093,-500.0,0.00021917,3]
[349716165,1737391840103,-500.0,0.00021917,3]
[349716167,1737391840113,-500.0,0.00021917,2]
[349716169,1737391840124,-500.0,0.00021917,3]
[349716171,1737391840133,-500.0,0.00021917,3]
[349716173,1737391840143,-500.0,0.00021917,3]
[349716175,1737391840153,-376.42416754,0.00021917,3]
[349716177,1737391840163,-500.0,0.00021917,3]
[349716179,1737391840173,-500.0,0.00021917,3]
[349716181,1737391840183,-500.0,0.00021917,3]
[349716183,1737391840193,-500.0,0.00021917,3]
[349716186,1737391840203,-500.0,0.00021917,3]
[349716187,1737391840213,-500.0,0.00021917,3]
[349716189,1737391840223,-500.0,0.00021917,3]
[349716191,1737391840232,-500.0,0.00021917,3]
[349716193,1737391840241,-500.0,0.00021917,3]
[349716195,1737391840252,-500.0,0.00021917,3]
[349716197,1737391840262,-500.0,0.00021917,3]
[349716199,1737391840271,-500.0,0.00021917,3]
[349716201,1737391840281,-500.0,0.00021917,3]
[349716203,1737391840291,-2746.9,0.00021917,3]
[349716205,1737391840302,-2746.9,0.00021917,3]
[349716207,1737391840312,-2746.9,0.00021917,3]
[349716209,1737391840323,-2746.9,0.00021917,3]
[349716211,1737391840333,-2746.9,0.00021917,3]
[349716213,1737391840343,-2746.9,0.00021917,3]
[349716215,1737391840353,-2746.9,0.00021917,3]
[349716218,1737391840366,-500.0,0.00021917,3]
[349716220,1737391840376,-2746.9,0.00021917,3]
[349716222,1737391840385,-2746.9,0.00021917,3]
[349716224,1737391840395,-500.0,0.00021917,3]
[349716226,1737391840405,-500.0,0.00021917,3]
[349716228,1737391840415,-500.0,0.00021917,3]
[349716230,1737391840424,-500.0,0.00021917,3]
[349716232,1737391840435,-500.0,0.00021917,3]
[349716234,1737391840445,-500.0,0.00021917,3]
[349716236,1737391840454,-500.0,0.00021917,3]
[349716238,1737391840464,-500.0,0.00021917,3]
[349716240,1737391840473,-500.0,0.00021917,3]
[349716242,1737391840482,-500.0,0.00021917,3]
[349716244,1737391840492,-500.0,0.00021917,3]
[349716246,1737391840501,-500.0,0.00021917,3]
[349716248,1737391840510,-500.0,0.00021917,3]
[349716250,1737391840519,-1330.65,0.00021917,3]
[349716252,1737391840529,-500.0,0.00021917,3]
[349716254,1737391840538,-500.0,0.00021917,3]
[349716256,1737391840548,-500.0,0.00021917,3]
[349716258,1737391840558,-500.0,0.00021917,3]
[349716260,1737391840567,-500.0,0.00021917,3]
[349716262,1737391840576,-500.0,0.00021917,3]
[349716264,1737391840585,-500.0,0.00021917,3]
[349716266,1737391840595,-200.0,0.00021917,3]
[349716268,1737391840604,-500.0,0.00021917,3]
[349716270,1737391840613,-500.0,0.00021917,3]
[349716272,1737391840622,-500.0,0.00021917,3]
[349716274,1737391840632,-500.0,0.00021917,3]
[349716276,1737391840641,-500.0,0.00021917,3]
[349716278,1737391840651,-500.41285482,0.00021917,3]
[349716280,1737391840660,-367.84836339,0.00021917,3]
[349716282,1737391840669,-2870.88,0.00021917,3]
[349716284,1737391840678,-500.0,0.00021917,3]
[349716286,1737391840688,-455.43224117,0.00021917,3]
[349716288,1737391840697,-587.83,0.00021917,3]